fUST/lending_fUST_20250210
["ID","MTS","AMOUNT","RATE_DAILY","PERIOD"]
[352572946,1739175040730,-500.0,0.00011369,2]
[352572948,1739175040739,-500.0,0.00011369,2]
[352572950,1739175040749,-500.0,0.00011369,2]
[352572952,1739175040759,-688.78,0.00011369,2]
[352572954,1739175040768,-1034.91,0.00011369,2]
[352572956,1739175040779,-500.0,0.00011369,2]
[352572958,1739175040792,-9467.32,0.00011369,2]
[352572960,1739175040806,-500.0,0.00011369,2]
[352572962,1739175040816,-352.11,0.00011369,2]
[352572964,1739175040826,-500.0,0.00011369,2]
[352572966,1739175040835,-512.81,0.00011369,2]
[352572968,1739175040845,-1737.53,0.00011369,2]
[352572970,1739175040854,-500.0,0.00011369,2]
[352572972,1739175040863,-500.0,0.00011369,2]
[352572974,1739175040873,-500.0,0.00011369,2]
[352572976,1739175040882,-800.73,0.00011369,2]
[352572978,1739175040893,-500.0,0.00011369,2]
[352572980,1739175040903,-500.0,0.00011369,2]
[352572982,1739175040913,-2140.57,0.00011369,2]
[352572984,1739175040923,-500.0,0.00011369,2]
[352572986,1739175040932,-500.0,0.00011369,2]
[352572988,1739175040942,-499.97634618,0.00011369,2]
[352572990,1739175040952,-500.0,0.00011369,2]
[352572992,1739175040961,-858.14,0.00011369,2]
[352572994,1739175040971,-500.0,0.00011369,2]
[352572995,1739175040984,-500.0,0.00011369,2]
[352573006,1739175041096,-500.0,0.00011369,2]
[352573009,1739175041108,-500.0,0.00011369,2]
[352573011,1739175041120,-500.0,0.00011369,2]
[352573013,1739175041132,-500.0,0.00011369,2]
[352573015,1739175041143,-500.0,0.00011369,2]
[352573017,1739175041153,-500.0,0.00011369,2]
[352573018,1739175041163,-790.65,0.00011369,2]
[352573020,1739175041173,-898.09,0.00011369,2]
[352573023,1739175041184,-500.0,0.00011369,2]
[352573024,1739175041194,-500.0,0.00011369,2]
[352573026,1739175041205,-500.0,0.00011369,2]
[352573028,1739175041215,-758.03,0.00011369,2]
[352573031,1739175041226,-5296.17,0.00011369,2]
[352573032,1739175041236,-500.0,0.00011369,2]
[352573034,1739175041247,-500.0,0.00011369,2]
[352573036,1739175041257,-904.74,0.00011369,2]
[352573038,1739175041268,-1142.61,0.00011369,2]
[352573041,1739175041278,-500.0,0.00011369,2]
[352573042,1739175041290,-1072.74,0.00011369,2]
[352573044,1739175041300,-500.0,0.00011369,2]
[352573046,1739175041310,-1925.14,0.00011369,2]
[352573048,1739175041321,-500.0,0.00011369,2]
[352573051,1739175041331,-500.0,0.00011506,2]
[352573052,1739175041341,-500.0,0.00011506,2]
[352573054,1739175041350,-500.0,0.00011506,2]
[352573056,1739175041362,-392.73019354,0.00011506,2]
[352573058,1739175041372,-500.0,0.00011506,2]
[352573060,1739175041381,-500.0,0.00011506,2]
[352573062,1739175041392,-500.0,0.00011506,2]
[352573065,1739175041402,-500.0,0.00011506,2]
[352573067,1739175041412,-500.0,0.00011506,2]
[352573069,1739175041423,-500.0,0.00011506,2]
[352573071,1739175041433,-377.36,0.00011506,2]
[352573073,1739175041442,-500.0,0.00011506,2]
[352573075,1739175041453,-500.0,0.00011506,2]
[352573077,1739175041464,-500.0,0.00011506,2]
[352573079,1739175041475,-500.0,0.00011506,2]
[352573081,1739175041486,-688.78,0.00011506,2]
[352573083,1739175041497,-1034.91,0.00011506,2]
[352573085,1739175041507,-500.0,0.00011506,2]
[352573087,1739175041518,-9467.32,0.00011506,2]
[352573089,1739175041528,-500.0,0.00011506,2]
[352573091,1739175041541,-500.0,0.00011506,2]
[352573093,1739175041551,-512.81,0.00011506,2]
[352573095,1739175041562,-1737.53,0.00011506,2]
[352573097,1739175041572,-500.0,0.00011506,2]
[352573099,1739175041582,-500.0,0.00011506,2]
[352573101,1739175041593,-500.0,0.00011506,2]
[352573103,1739175041604,-800.73,0.00011506,2]
[352573105,1739175041614,-500.0,0.00011506,2]
[352573107,1739175041624,-500.0,0.00011506,2]
[352573109,1739175041635,-2140.57,0.00011506,2]
[352573111,1739175041645,-500.0,0.00011506,2]
[352573113,1739175041656,-500.0,0.00011506,2]
[352573115,1739175041666,-500.0,0.00011506,2]
[352573117,1739175041676,-858.14,0.00011506,2]
[352573119,1739175041687,-500.0,0.00011506,2]
[352573121,1739175041697,-500.0,0.00011506,2]
[352573123,1739175041708,-500.0,0.00011506,2]
[352573125,1739175041718,-500.0,0.00011506,2]
[352573127,1739175041728,-500.0,0.00011506,2]
[352573129,1739175041738,-500.0,0.00011506,2]
[352573131,1739175041748,-500.0,0.00011506,2]
[352573133,1739175041758,-500.0,0.00011506,2]
[352573135,1739175041768,-790.65,0.00011506,2]
[352573137,1739175041780,-898.09,0.00011506,2]
[352573139,1739175041792,-500.0,0.00011506,2]
[352573141,1739175041804,-500.0,0.00011506,2]
[352573144,1739175041814,-500.0,0.00011506,2]
[352573145,1739175041826,-758.03,0.00011506,2]
[352573147,1739175041836,-5296.17,0.00011506,2]
[352573149,1739175041847,-500.0,0.00011506,2]
[352573151,1739175041857,-203.28813587,0.00011506,2]
[352573153,1739175041869,-904.74,0.00011506,2]
[352573156,1739175041881,-1142.61,0.00011506,2]
[352573158,1739175041891,-500.0,0.00011506,2]
[352573160,1739175041901,-1072.74,0.00011506,2]
[352573161,1739175041912,-500.0,0.00011506,2]
[352573163,1739175041922,-1925.14,0.00011506,2]
[352573165,1739175041932,-500.0,0.00011506,2]
[352573167,1739175041943,-500.0,0.00011643,2]
[352573169,1739175041953,-500.0,0.00011643,2]
[352573171,1739175041963,-500.0,0.00011643,2]
[352573174,1739175041974,-500.0,0.00011643,2]
[352573176,1739175041985,-500.0,0.00011643,2]
[352573177,1739175041998,-500.0,0.00011643,2]
[352573179,1739175042008,-416.01,0.00011643,2]
[352573181,1739175042019,-500.0,0.00011643,2]
[352573183,1739175042031,-500.0,0.00011643,2]
[352573186,1739175042043,-500.0,0.00011643,2]
[352573187,1739175042053,-500.0,0.00011643,2]
[352573190,1739175042065,-500.0,0.00011643,2]
[352573192,1739175042075,-500.0,0.00011643,2]
[352573193,1739175042085,-688.78,0.00011643,2]
[352573195,1739175042096,-1034.91,0.00011643,2]
[352573198,1739175042107,-500.0,0.00011643,2]
[352573200,1739175042117,-9467.32,0.00011643,2]
[352573202,1739175042127,-500.0,0.00011643,2]
[352573204,1739175042138,-500.0,0.00011643,2]
[352573206,1739175042149,-512.81,0.00011643,2]
[352573208,1739175042159,-1737.53,0.00011643,2]
[352573209,1739175042169,-500.0,0.00011643,2]
[352573212,1739175042179,-500.0,0.00011643,2]
[352573214,1739175042190,-500.0,0.00011643,2]
[352573216,1739175042200,-800.73,0.00011643,2]
[352573218,1739175042211,-500.0,0.00011643,2]
[352573220,1739175042221,-2140.57,0.00011643,2]
[352573222,1739175042233,-500.0,0.00011643,2]
[352573224,1739175042243,-500.0,0.00011643,2]
[352573226,1739175042254,-500.0,0.00011643,2]
[352573228,1739175042265,-858.14,0.00011643,2]
[352573230,1739175042274,-500.0,0.00011643,2]
[352573232,1739175042284,-500.0,0.00011643,2]
[352573233,1739175042295,-500.0,0.00011643,2]
[352573235,1739175042305,-500.0,0.00011643,2]
[352573237,1739175042315,-500.0,0.00011643,2]
[352573239,1739175042326,-477.84,0.00011643,2]
[352573241,1739175042336,-500.0,0.00011643,2]
[352573243,1739175042347,-500.0,0.00011643,2]
[352573245,1739175042357,-790.65,0.00011643,2]
[352573247,1739175042367,-898.09,0.00011643,2]
[352573249,1739175042376,-500.0,0.00011643,2]
[352573250,1739175042386,-500.0,0.00011643,2]
[352573251,1739175042397,-500.0,0.00011643,2]
[352573252,1739175042407,-5296.17,0.00011643,2]
[352573253,1739175042416,-758.03,0.00011643,2]
[352573254,1739175042427,-500.0,0.00011643,2]
[352573255,1739175042438,-904.74,0.00011643,2]
[352573256,1739175042448,-1142.61,0.00011643,2]
[352573257,1739175042458,-500.0,0.00011643,2]
[352573258,1739175042468,-1072.74,0.00011643,2]
[352573259,1739175042479,-500.0,0.00011643,2]
[352573260,1739175042488,-1925.14,0.00011643,2]
[352573261,1739175042497,-500.0,0.00011643,2]
[352573262,1739175042507,-500.0,0.00011779,2]
[352573263,1739175042517,-157.81917039,0.00011779,2]
[352573264,1739175042526,-358.2183187,0.00011779,2]
[352573266,1739175042538,-500.0,0.00011779,2]
[352573269,1739175042549,-500.0,0.00011779,2]
[352573271,1739175042558,-500.0,0.0001178,2]
[352573274,1739175042569,-500.0,0.0001178,2]
[352573276,1739175042580,-500.0,0.0001178,2]
[352573278,1739175042590,-500.0,0.0001178,2]
[352573280,1739175042600,-500.0,0.0001178,2]
[352573282,1739175042611,-574.97,0.0001178,2]
[352573284,1739175042621,-464.07943482,0.0001178,2]
[352573286,1739175042631,-500.0,0.0001178,2]
[352573288,1739175042641,-500.0,0.0001178,2]
[352573291,1739175042650,-500.0,0.0001178,2]
[352573293,1739175042661,-500.0,0.0001178,2]
[352573295,1739175042671,-503.76,0.0001178,2]
[352573297,1739175042682,-688.78,0.0001178,2]
[352573299,1739175042694,-1034.91,0.0001178,2]
[352573301,1739175042704,-500.0,0.0001178,2]
[352573303,1739175042715,-9467.32,0.0001178,2]
[352573305,1739175042727,-500.0,0.0001178,2]
[352573306,1739175042737,-500.0,0.0001178,2]
[352573308,1739175042748,-512.81,0.0001178,2]
[352573310,1739175042759,-1737.53,0.0001178,2]
[352573313,1739175042771,-500.0,0.0001178,2]
[352573314,1739175042791,-500.0,0.0001178,2]
[352573316,1739175042802,-500.0,0.0001178,2]
[352573318,1739175042812,-800.73,0.0001178,2]
[352573320,1739175042822,-500.0,0.0001178,2]
[352573322,1739175042836,-2140.57,0.0001178,2]
[352573324,1739175042847,-500.0,0.0001178,2]
[352573326,1739175042859,-500.0,0.0001178,2]
[352573328,1739175042869,-500.0,0.0001178,2]
[352573331,1739175042879,-858.14,0.0001178,2]
[352573333,1739175042889,-500.0,0.0001178,2]
[352573335,1739175042900,-500.0,0.0001178,2]
[352573337,1739175042910,-500.0,0.0001178,2]
[352573339,1739175042920,-500.0,0.0001178,2]
[352573341,1739175042930,-500.0,0.0001178,2]
[352573343,1739175042939,-500.0,0.0001178,2]
[352573344,1739175042949,-500.0,0.0001178,2]
[352573346,1739175042959,-790.65,0.0001178,2]
[352573348,1739175042969,-898.09,0.0001178,2]
[352573350,1739175042979,-500.0,0.0001178,2]
[352573352,1739175042989,-500.0,0.0001178,2]
[352573354,1739175042999,-500.0,0.0001178,2]
[352573356,1739175043013,-758.03,0.0001178,2]
[352573358,1739175043023,-5296.17,0.0001178,2]
[352573360,1739175043033,-500.0,0.0001178,2]
[352573363,1739175043047,-904.74,0.0001178,2]
[352573364,1739175043057,-1142.61,0.0001178,2]
[352573367,1739175043067,-500.0,0.0001178,2]
[352573368,1739175043077,-1072.74,0.0001178,2]
[352573370,1739175043087,-500.0,0.0001178,2]
[352573372,1739175043097,-1925.14,0.0001178,2]
[352573374,1739175043107,-413.93567255,0.0001178,2]
[352573377,1739175043117,-500.0,0.00011917,2]
[352573379,1739175043126,-500.0,0.00011917,2]
[352573380,1739175043137,-500.0,0.00011917,2]
[352573382,1739175043147,-500.0,0.00011917,2]
[352573384,1739175043157,-500.0,0.00011917,2]
[352573386,1739175043167,-500.0,0.00011917,2]
[352573388,1739175043176,-439.52,0.00011917,2]
[352573390,1739175043186,-500.0,0.00011917,2]
[352573392,1739175043195,-500.0,0.00011917,2]
[352573394,1739175043204,-688.78,0.00011917,2]
[352573396,1739175043214,-1034.91,0.00011917,2]
[352573398,1739175043224,-500.0,0.00011917,2]
[352573400,1739175043234,-9467.32,0.00011917,2]
[352573403,1739175043244,-500.0,0.00011917,2]
[352573405,1739175043254,-500.0,0.00011917,2]
[352573407,1739175043264,-512.81,0.00011917,2]
[352573409,1739175043276,-1737.53,0.00011917,2]
[352573411,1739175043289,-500.0,0.00011917,2]
[352573413,1739175043298,-500.0,0.00011917,2]
[352573415,1739175043307,-500.0,0.00011917,2]
[352573417,1739175043316,-800.73,0.00011917,2]
[352573419,1739175043326,-500.0,0.00011917,2]
[352573421,1739175043335,-2140.57,0.00011917,2]
[352573423,1739175043345,-500.0,0.00011917,2]
[352573425,1739175043354,-500.0,0.00011917,2]
[352573427,1739175043363,-500.0,0.00011917,2]
[352573429,1739175043373,-858.14,0.00011917,2]
[352573431,1739175043382,-500.0,0.00011917,2]
[352573433,1739175043391,-500.0,0.00011917,2]
[352573435,1739175043400,-500.0,0.00011917,2]
[352573437,1739175043409,-281.80556329,0.00011917,2]
[352573438,1739175043418,-500.0,0.00011917,2]
[352573440,1739175043428,-500.0,0.00011917,2]
[352573442,1739175043438,-500.0,0.00011917,2]
[352573444,1739175043448,-790.65,0.00011917,2]
[352573447,1739175043458,-898.09,0.00011917,2]
[352573449,1739175043468,-500.0,0.00011917,2]
[352573450,1739175043477,-500.0,0.00011917,2]
[352573453,1739175043487,-500.0,0.00011917,2]
[352573455,1739175043497,-5296.17,0.00011917,2]
[352573456,1739175043506,-758.03,0.00011917,2]
[352573458,1739175043515,-500.0,0.00011917,2]
[352573460,1739175043525,-904.74,0.00011917,2]
[352573462,1739175043534,-1142.61,0.00011917,2]
[352573464,1739175043546,-500.0,0.00011917,2]
[352573466,1739175043555,-1072.74,0.00011917,2]
[352573468,1739175043564,-500.0,0.00011917,2]
[352573470,1739175043574,-1925.14,0.00011917,2]
[352573472,1739175043584,-420.0,0.00012041,2]
[352573474,1739175043594,-151.0,0.00012054,2]
[352573476,1739175043605,-151.0,0.00012054,2]
[352573478,1739175043615,-151.0,0.00012054,2]
[352573480,1739175043624,-151.0,0.00012054,2]
[352573482,1739175043633,-500.0,0.00012054,2]
[352573484,1739175043643,-500.0,0.00012054,2]
[352573486,1739175043652,-500.0,0.00012054,2]
[352573488,1739175043662,-500.0,0.00012054,2]
[352573490,1739175043671,-500.0,0.00012054,2]
[352573492,1739175043680,-500.0,0.00012054,2]
[352573494,1739175043689,-500.0,0.00012054,2]
[352573496,1739175043700,-688.78,0.00012054,2]
[352573498,1739175043710,-1034.91,0.00012054,2]
[352573500,1739175043720,-500.0,0.00012054,2]
[352573502,1739175043729,-9467.32,0.00012054,2]
[352573504,1739175043738,-500.0,0.00012054,2]
[352573505,1739175043747,-500.0,0.00012054,2]
[352573507,1739175043756,-512.81,0.00012054,2]
[352573510,1739175043765,-1737.53,0.00012054,2]
[352573511,1739175043775,-500.0,0.00012054,2]
[352573513,1739175043784,-500.0,0.00012054,2]
[352573515,1739175043796,-500.0,0.00012054,2]
[352573517,1739175043808,-800.73,0.00012054,2]
[352573519,1739175043818,-500.0,0.00012054,2]
[352573521,1739175043828,-2140.57,0.00012054,2]
[352573523,1739175043838,-500.0,0.00012054,2]
[352573525,1739175043848,-500.0,0.00012054,2]
[352573527,1739175043857,-500.0,0.00012054,2]
[352573529,1739175043867,-858.14,0.00012054,2]
[352573531,1739175043878,-500.0,0.00012054,2]
[352573533,1739175043887,-500.0,0.00012054,2]
[352573544,1739175043976,-500.0,0.00012054,2]
[352573546,1739175043997,-500.0,0.00012054,2]
[352573548,1739175044007,-500.0,0.00012054,2]
[352573550,1739175044016,-500.0,0.00012054,2]
[352573552,1739175044026,-790.65,0.00012054,2]
[352573554,1739175044038,-898.09,0.00012054,2]
[352573556,1739175044048,-500.0,0.00012054,2]
[352573559,1739175044059,-500.0,0.00012054,2]
[352573561,1739175044068,-500.0,0.00012054,2]
[352573563,1739175044079,-5296.17,0.00012054,2]
[352573565,1739175044089,-758.03,0.00012054,2]
[352573567,1739175044099,-500.0,0.00012054,2]
[352573569,1739175044108,-904.74,0.00012054,2]
[352573571,1739175044118,-1142.61,0.00012054,2]
[352573573,1739175044128,-500.0,0.00012054,2]
[352573575,1739175044137,-1072.74,0.00012054,2]
[352573577,1739175044147,-500.0,0.00012054,2]
[352573579,1739175044157,-1925.14,0.00012054,2]
[352573581,1739175044167,-500.0,0.00012191,2]
[352573583,1739175044176,-500.0,0.00012191,2]
[352573585,1739175044186,-500.0,0.00012191,2]
[352573587,1739175044195,-500.0,0.00012191,2]
[352573589,1739175044204,-495.66,0.00012191,2]
[352573591,1739175044214,-500.0,0.00012191,2]
[352573593,1739175044223,-597.76000001,0.00012191,2]
[352573595,1739175044232,-688.78,0.00012191,2]
[352573597,1739175044242,-1034.91,0.00012191,2]
[352573599,1739175044251,-500.0,0.00012191,2]
[352573601,1739175044261,-9467.32,0.00012191,2]
[352573603,1739175044270,-500.0,0.00012191,2]
[352573605,1739175044279,-500.0,0.00012191,2]
[352573607,1739175044292,-512.81,0.00012191,2]
[352573609,1739175044301,-1737.53,0.00012191,2]
[352573611,1739175044311,-192.4,0.00012191,2]
[352573613,1739175044320,-500.0,0.00012191,2]
[352573615,1739175044329,-500.0,0.00012191,2]
[352573617,1739175044338,-800.73,0.00012191,2]
[352573619,1739175044347,-500.0,0.00012191,2]
[352573621,1739175044358,-2140.57,0.00012191,2]
[352573623,1739175044367,-500.0,0.00012191,2]
[352573625,1739175044377,-500.0,0.00012191,2]
[352573627,1739175044386,-500.0,0.00012191,2]
[352573629,1739175044395,-858.14,0.00012191,2]
[352573631,1739175044405,-500.0,0.00012191,2]
[352573634,1739175044415,-500.0,0.00012191,2]
[352573636,1739175044424,-500.0,0.00012191,2]
[352573638,1739175044434,-500.0,0.00012191,2]
[352573639,1739175044443,-500.0,0.00012191,2]
[352573642,1739175044452,-500.0,0.00012191,2]
[352573643,1739175044462,-790.65,0.00012191,2]
[352573646,1739175044472,-898.09,0.00012191,2]
[352573648,1739175044483,-500.0,0.00012191,2]
[352573650,1739175044492,-500.0,0.00012191,2]
[352573651,1739175044502,-500.0,0.00012191,2]
[352573653,1739175044511,-5296.17,0.00012191,2]
[352573655,1739175044520,-758.03,0.00012191,2]
[352573657,1739175044530,-500.0,0.00012191,2]
[352573659,1739175044541,-904.74,0.00012191,2]
[352573661,1739175044551,-1142.61,0.00012191,2]
[352573664,1739175044562,-406.56,0.00012191,2]
[352573665,1739175044571,-1072.74,0.00012191,2]
[352573667,1739175044581,-500.0,0.00012191,2]
[352573669,1739175044590,-1925.14,0.00012191,2]
[352573671,1739175044600,-508.44500603,0.00012227,2]
[352573673,1739175044609,-500.0,0.00012227,2]
[352573675,1739175044619,-163.67726063,0.00012227,2]
[352573677,1739175044628,-500.0,0.00012246,2]
[352573679,1739175044637,-500.0,0.00012246,2]
[352573681,1739175044647,-528.49169087,0.00012246,2]
[352573683,1739175044656,-500.0,0.00012271,2]
[352573685,1739175044666,-500.0,0.00012285,2]
[352573687,1739175044676,-500.0,0.00012285,2]
[352573689,1739175044686,-505.17,0.00012328,2]
[352573691,1739175044697,-401.27712056,0.00012328,2]
[352573693,1739175044707,-500.0,0.00012328,2]
[352573695,1739175044716,-500.0,0.00012328,2]
[352573697,1739175044726,-500.0,0.00012328,2]
[352573699,1739175044736,-688.78,0.00012328,2]
[352573701,1739175044746,-1034.91,0.00012328,2]
[352573703,1739175044756,-500.0,0.00012328,2]
[352573705,1739175044767,-9467.32,0.00012328,2]
[352573707,1739175044777,-500.0,0.00012328,2]
[352573709,1739175044789,-500.0,0.00012328,2]
[352573712,1739175044801,-512.81,0.00012328,2]
[352573713,1739175044811,-1737.53,0.00012328,2]
[352573715,1739175044821,-421.44,0.00012328,2]
[352573717,1739175044830,-800.73,0.00012328,2]
[352573719,1739175044839,-500.0,0.00012328,2]
[352573721,1739175044850,-2140.57,0.00012328,2]
[352573723,1739175044861,-500.0,0.00012328,2]
[352573725,1739175044871,-500.0,0.00012328,2]
[352573727,1739175044883,-500.0,0.00012328,2]
[352573729,1739175044895,-858.14,0.00012328,2]
[352573731,1739175044905,-500.0,0.00012328,2]
[352573733,1739175044915,-500.0,0.00012328,2]
[352573735,1739175044924,-500.0,0.00012328,2]
[352573737,1739175044934,-500.0,0.00012328,2]
[352573739,1739175044945,-500.0,0.00012328,2]
[352573741,1739175044955,-484.35,0.00012328,2]
[352573742,1739175044964,-790.65,0.00012328,2]
[352573743,1739175044974,-898.09,0.00012328,2]
[352573744,1739175044983,-500.0,0.00012328,2]
[352573746,1739175044995,-500.0,0.00012328,2]
[352573748,1739175045005,-500.0,0.00012328,2]
[352573750,1739175045016,-5296.17,0.00012328,2]
[352573752,1739175045027,-758.03,0.00012328,2]
[352573754,1739175045039,-500.0,0.00012328,2]
[352573756,1739175045048,-904.74,0.00012328,2]
[352573758,1739175045058,-1142.61,0.00012328,2]
[352573760,1739175045068,-1072.74,0.00012328,2]
[352573762,1739175045078,-500.0,0.00012328,2]
[352573764,1739175045087,-1925.14,0.00012328,2]
[352573766,1739175045098,-151.0,0.00012465,2]
[352573768,1739175045107,-175.425665,0.00012465,2]
[352573770,1739175045117,-151.0,0.00012465,2]
[352573772,1739175045126,-500.0,0.00012465,2]
[352573774,1739175045135,-321.94,0.00012465,2]
[352573776,1739175045145,-500.0,0.00012465,2]
[352573778,1739175045154,-688.78,0.00012465,2]
[352573780,1739175045164,-1034.91,0.00012465,2]
[352573782,1739175045173,-500.0,0.00012465,2]
[352573784,1739175045183,-9467.32,0.00012465,2]
[352573786,1739175045193,-500.0,0.00012465,2]
[352573788,1739175045203,-500.0,0.00012465,2]
[352573790,1739175045212,-512.81,0.00012465,2]
[352573792,1739175045222,-1737.53,0.00012465,2]
[352573794,1739175045231,-800.73,0.00012465,2]
[352573796,1739175045241,-500.0,0.00012465,2]
[352573798,1739175045250,-2140.57,0.00012465,2]
[352573800,1739175045259,-509.17,0.00012465,2]
[352573802,1739175045268,-500.0,0.00012465,2]
[352573804,1739175045278,-500.0,0.00012465,2]
[352573806,1739175045289,-858.14,0.00012465,2]
[352573808,1739175045298,-500.0,0.00012465,2]
[352573810,1739175045307,-500.0,0.00012465,2]
[352573811,1739175045316,-500.0,0.00012465,2]
[352573813,1739175045325,-500.0,0.00012465,2]
[352573816,1739175045335,-500.0,0.00012465,2]
[352573817,1739175045345,-790.65,0.00012465,2]
[352573820,1739175045355,-898.09,0.00012465,2]
[352573822,1739175045365,-500.0,0.00012465,2]
[352573824,1739175045376,-500.0,0.00012465,2]
[352573826,1739175045388,-500.0,0.00012465,2]
[352573828,1739175045398,-5296.17,0.00012465,2]
[352573830,1739175045408,-758.03,0.00012465,2]
[352573832,1739175045417,-188.12,0.00012465,2]
[352573834,1739175045427,-904.74,0.00012465,2]
[352573836,1739175045437,-1142.61,0.00012465,2]
[352573838,1739175045447,-1072.74,0.00012465,2]
[352573840,1739175045458,-500.0,0.00012465,2]
[352573842,1739175045468,-1925.14,0.00012465,2]
[352573844,1739175045479,-1000.0,0.00012545,2]
[352573847,1739175045489,-500.0,0.00012602,2]
[352573849,1739175045498,-500.0,0.00012602,2]
[352573850,1739175045508,-688.78,0.00012602,2]
[352573852,1739175045518,-1034.91,0.00012602,2]
[352573854,1739175045528,-500.0,0.00012602,2]
[352573856,1739175045539,-9467.32,0.00012602,2]
[352573860,1739175045549,-500.0,0.00012602,2]
[352573861,1739175045558,-500.0,0.00012602,2]
[352573863,1739175045569,-512.81,0.00012602,2]
[352573865,1739175045579,-1737.53,0.00012602,2]
[352573868,1739175045589,-800.73,0.00012602,2]
[352573871,1739175045598,-500.0,0.00012602,2]
[352573872,1739175045607,-2140.57,0.00012602,2]
[352573874,1739175045617,-500.0,0.00012602,2]
[352573877,1739175045627,-500.0,0.00012602,2]
[352573879,1739175045637,-858.14,0.00012602,2]
[352573882,1739175045648,-500.0,0.00012602,2]
[352573884,1739175045657,-500.0,0.00012602,2]
[352573888,1739175045667,-500.0,0.00012602,2]
[352573889,1739175045677,-500.0,0.00012602,2]
[352573891,1739175045687,-500.0,0.00012602,2]
[352573893,1739175045697,-790.65,0.00012602,2]
[352573896,1739175045707,-898.09,0.00012602,2]
[352573900,1739175045719,-500.0,0.00012602,2]
[352573903,1739175045728,-500.0,0.00012602,2]
[352573906,1739175045738,-500.0,0.00012602,2]
[352573909,1739175045748,-5296.17,0.00012602,2]
[352573911,1739175045758,-758.03,0.00012602,2]
[352573914,1739175045769,-904.74,0.00012602,2]
[352573918,1739175045783,-1142.61,0.00012602,2]
[352573921,1739175045794,-1072.74,0.00012602,2]
[352573924,1739175045804,-500.0,0.00012602,2]
[352573927,1739175045814,-1925.14,0.00012602,2]
[352573930,1739175045824,-500.0,0.00012739,2]
[352573933,1739175045834,-500.0,0.00012739,2]
[352573936,1739175045844,-688.78,0.00012739,2]
[352573939,1739175045853,-1034.91,0.00012739,2]
[352573942,1739175045863,-500.0,0.00012739,2]
[352573945,1739175045873,-9467.32,0.00012739,2]
[352573948,1739175045884,-396.4,0.00012739,2]
[352573951,1739175045894,-500.0,0.00012739,2]
[352573954,1739175045904,-512.81,0.00012739,2]
[352573957,1739175045913,-1737.53,0.00012739,2]
[352573960,1739175045923,-800.73,0.00012739,2]
[352573963,1739175045932,-500.0,0.00012739,2]
[352573966,1739175045942,-2140.57,0.00012739,2]
[352573969,1739175045951,-500.0,0.00012739,2]
[352573972,1739175045960,-500.0,0.00012739,2]
[352573975,1739175045970,-858.14,0.00012739,2]
[352573978,1739175045980,-500.0,0.00012739,2]
[352573981,1739175045989,-500.0,0.00012739,2]